[Event "*** Titled Tuesday Blitz"]
[Site "Chess.com"]
[Date "2021.02.09"]
[Round "3"]
[White "Indianlad"]
[Black "sorrm8thatscheckm8"]
[Result "0-1"]
[WhiteElo "2898"]
[BlackElo "2571"]
[TimeControl "180+1"]
[EndTime "10:28:05 PST"]
[Termination "sorrm8thatscheckm8 won by checkmate"]

1. b3 {[%clk 0:03:00.9]} 1... Nf6 {[%clk 0:02:58.4]} 2. Bb2 {[%clk 0:03:01.5]}
2... g6 {[%clk 0:02:59]} 3. g3 {[%clk 0:03:01.3]} 3... Bg7 {[%clk 0:02:59.3]} 4.
Bg2 {[%clk 0:03:01.9]} 4... O-O {[%clk 0:03:00]} 5. c4 {[%clk 0:03:02.4]} 5...
d6 {[%clk 0:02:59.9]} 6. d4 {[%clk 0:03:02.2]} 6... e5 {[%clk 0:02:59.7]} 7.
dxe5 {[%clk 0:03:02.2]} 7... Ng4 {[%clk 0:02:59.6]} 8. Nf3 {[%clk 0:03:01.6]}
8... Nc6 {[%clk 0:02:59]} 9. Nc3 {[%clk 0:02:57.1]} 9... Ngxe5 {[%clk 0:02:59]}
10. O-O {[%clk 0:02:56.7]} 10... Be6 {[%clk 0:02:57.7]} 11. Qd2 {[%clk
0:02:55.2]} 11... Rb8 {[%clk 0:02:54.2]} 12. Rac1 {[%clk 0:02:55.2]} 12... a6
{[%clk 0:02:54.1]} 13. Nd5 {[%clk 0:02:55]} 13... Nxf3+ {[%clk 0:02:50.9]} 14.
Bxf3 {[%clk 0:02:54.4]} 14... Bxb2 {[%clk 0:02:50.2]} 15. Qxb2 {[%clk
0:02:55.3]} 15... Bxd5 {[%clk 0:02:50.6]} 16. Bxd5 {[%clk 0:02:55.3]} 16... Ne7
{[%clk 0:02:46.5]} 17. Bf3 {[%clk 0:02:53.4]} 17... Qd7 {[%clk 0:02:44.6]} 18.
Rfd1 {[%clk 0:02:53.7]} 18... Qe6 {[%clk 0:02:43.8]} 19. h4 {[%clk 0:02:52]}
19... Nc6 {[%clk 0:02:40.2]} 20. c5 {[%clk 0:02:46.5]} 20... Ne5 {[%clk
0:02:35.7]} 21. cxd6 {[%clk 0:02:42.2]} 21... Nxf3+ {[%clk 0:02:34.5]} 22. exf3
{[%clk 0:02:43.1]} 22... cxd6 {[%clk 0:02:35.2]} 23. Rd4 {[%clk 0:02:42.5]}
23... Rbc8 {[%clk 0:02:08.3]} 24. Rcd1 {[%clk 0:02:42.7]} 24... Rc6 {[%clk
0:02:07.5]} 25. h5 {[%clk 0:02:40.7]} 25... gxh5 {[%clk 0:02:04.9]} 26. Rd5
{[%clk 0:02:40.4]} 26... f5 {[%clk 0:01:59.3]} 27. Qd4 {[%clk 0:02:35.3]} 27...
Rf6 {[%clk 0:01:56.8]} 28. Qf4 {[%clk 0:02:32.8]} 28... Kg7 {[%clk 0:01:44.4]}
29. Kg2 {[%clk 0:02:33]} 29... h6 {[%clk 0:01:40.2]} 30. R5d3 {[%clk 0:02:31.5]}
30... Qe5 {[%clk 0:01:36.9]} 31. Qb4 {[%clk 0:02:31.2]} 31... Qb5 {[%clk
0:01:29.3]} 32. Qe1 {[%clk 0:02:27.2]} 32... f4 {[%clk 0:01:22.5]} 33. Rd5
{[%clk 0:01:49.6]} 33... Qb6 {[%clk 0:01:07.6]} 34. R1d2 {[%clk 0:01:43.6]}
34... fxg3 {[%clk 0:01:04.9]} 35. fxg3 {[%clk 0:01:44.5]} 35... Qc7 {[%clk
0:01:00]} 36. Rxh5 {[%clk 0:01:41.3]} 36... Rc2 {[%clk 0:00:55.4]} 37. Rd5
{[%clk 0:01:39.6]} 37... Qc3 {[%clk 0:00:49.7]} 38. Rd3 {[%clk 0:01:39.7]} 38...
Qxd3 {[%clk 0:00:29]} 39. Rxc2 {[%clk 0:01:14.4]} 39... Qxc2+ {[%clk 0:00:28.6]}
40. Kh3 {[%clk 0:01:15.3]} 40... Qf5+ {[%clk 0:00:28]} 41. Kh2 {[%clk
0:01:15.5]} 41... Qxf3 {[%clk 0:00:27.9]} 42. Qe7+ {[%clk 0:01:16.2]} 42... Rf7
{[%clk 0:00:27]} 43. Qxd6 {[%clk 0:01:16.9]} 43... Qf2+ {[%clk 0:00:26.9]} 44.
Kh3 {[%clk 0:01:17.3]} 44... Qf1+ {[%clk 0:00:26.6]} 45. Kh2 {[%clk 0:01:17.6]}
45... Rf2# {[%clk 0:00:25.4]} 0-1

[Event "*** Titled Tuesday Blitz"]
[Site "Chess.com"]
[Date "2021.02.09"]
[Round "3"]
[White "lamomiablanca"]
[Black "WilliamSchill"]
[Result "1-0"]
[WhiteElo "2276"]
[BlackElo "1965"]
[TimeControl "180+1"]
[EndTime "10:28:05 PST"]
[Termination "lamomiablanca won on time"]

1. e4 {[%clk 0:03:00.9]} 1... c5 {[%clk 0:02:59.4]} 2. d3 {[%clk 0:03:00.2]}
2... Nc6 {[%clk 0:02:58.9]} 3. g3 {[%clk 0:03:00.1]} 3... g6 {[%clk 0:02:58.7]}
4. Bg2 {[%clk 0:02:59.7]} 4... Bg7 {[%clk 0:02:58.7]} 5. f4 {[%clk 0:02:59.4]}
5... d6 {[%clk 0:02:42.7]} 6. Nf3 {[%clk 0:02:58.3]} 6... e5 {[%clk 0:02:28.2]}
7. O-O {[%clk 0:02:53.6]} 7... Nge7 {[%clk 0:02:28.2]} 8. Nc3 {[%clk 0:02:52.6]}
8... O-O {[%clk 0:02:17]} 9. f5 {[%clk 0:02:51.5]} 9... gxf5 {[%clk 0:02:16.7]}
10. Nh4 {[%clk 0:02:49.6]} 10... Nd4 {[%clk 0:02:09.8]} 11. Bg5 {[%clk
0:02:17.6]} 11... f6 {[%clk 0:02:05.5]} 12. Be3 {[%clk 0:02:16]} 12... Qe8
{[%clk 0:01:49.1]} 13. exf5 {[%clk 0:02:08.1]} 13... Ndxf5 {[%clk 0:01:31.4]}
14. Nxf5 {[%clk 0:02:05]} 14... Nxf5 {[%clk 0:01:31.2]} 15. Bd5+ {[%clk
0:02:03.6]} 15... Kh8 {[%clk 0:01:24.9]} 16. Bd2 {[%clk 0:02:02.1]} 16... Be6
{[%clk 0:01:05.6]} 17. Bxb7 {[%clk 0:01:58.8]} 17... Rb8 {[%clk 0:01:05.5]} 18.
Be4 {[%clk 0:01:58.9]} 18... Nd4 {[%clk 0:01:04.7]} 19. b3 {[%clk 0:01:57]}
19... f5 {[%clk 0:01:04.1]} 20. Bd5 {[%clk 0:01:55.4]} 20... Qg6 {[%clk
0:00:51.1]} 21. Bxe6 {[%clk 0:01:44.6]} 21... Nxe6 {[%clk 0:00:51]} 22. Nd5
{[%clk 0:01:39.7]} 22... f4 {[%clk 0:00:34.6]} 23. Kg2 {[%clk 0:01:36.4]} 23...
fxg3 {[%clk 0:00:16.1]} 24. hxg3 {[%clk 0:01:35.8]} 24... Nf4+ {[%clk
0:00:15.7]} 25. Nxf4 {[%clk 0:01:28.6]} 25... exf4 {[%clk 0:00:15.8]} 26. Bxf4
{[%clk 0:01:28.6]} 26... Bxa1 {[%clk 0:00:11.8]} 27. Qxa1+ {[%clk 0:01:29.5]}
27... Kg8 {[%clk 0:00:11.7]} 28. Qd1 {[%clk 0:01:26.9]} 28... Rbe8 {[%clk
0:00:10]} 29. Rf2 {[%clk 0:01:25.9]} 29... d5 {[%clk 0:00:08.9]} 30. Qd2 {[%clk
0:01:25.2]} 30... d4 {[%clk 0:00:08.8]} 31. Qa5 {[%clk 0:01:21.4]} 31... Qc6+
{[%clk 0:00:08.2]} 32. Kh2 {[%clk 0:01:18.5]} 32... Re6 {[%clk 0:00:06.6]} 33.
Qd2 {[%clk 0:01:07.2]} 33... Rfe8 {[%clk 0:00:05.1]} 34. Rg2 {[%clk 0:01:01.1]}
34... Qd7 {[%clk 0:00:01.3]} 35. Bh6 {[%clk 0:00:59.5]} 1-0

[Event "*** Titled Tuesday Blitz"]
[Site "Chess.com"]
[Date "2021.02.09"]
[Round "3"]
[White "QuintilianoR"]
[Black "Darius321"]
[Result "1-0"]
[WhiteElo "2680"]
[BlackElo "2266"]
[TimeControl "180+1"]
[EndTime "10:28:06 PST"]
[Termination "QuintilianoR won by resignation"]

1. Nf3 {[%clk 0:03:00.9]} 1... d5 {[%clk 0:02:59.5]} 2. e3 {[%clk 0:02:58.6]}
2... c5 {[%clk 0:02:58.9]} 3. c4 {[%clk 0:02:58.2]} 3... e6 {[%clk 0:02:56.8]}
4. d4 {[%clk 0:02:47.1]} 4... cxd4 {[%clk 0:02:56.9]} 5. exd4 {[%clk 0:02:46.7]}
5... Nf6 {[%clk 0:02:57.1]} 6. Nc3 {[%clk 0:02:46.5]} 6... Be7 {[%clk
0:02:55.7]} 7. cxd5 {[%clk 0:02:45.9]} 7... Nxd5 {[%clk 0:02:55.3]} 8. Bd3
{[%clk 0:02:46.3]} 8... O-O {[%clk 0:02:53.4]} 9. O-O {[%clk 0:02:46.6]} 9...
Nc6 {[%clk 0:02:49.7]} 10. Re1 {[%clk 0:02:45.1]} 10... Bf6 {[%clk 0:02:46.9]}
11. Be4 {[%clk 0:02:17.5]} 11... Nce7 {[%clk 0:02:46.8]} 12. a3 {[%clk
0:01:45.6]} 12... b6 {[%clk 0:02:43.4]} 13. Qd3 {[%clk 0:01:43.3]} 13... g6
{[%clk 0:02:40.9]} 14. Bh6 {[%clk 0:01:42.2]} 14... Bg7 {[%clk 0:02:37.2]} 15.
Bg5 {[%clk 0:01:33.9]} 15... f6 {[%clk 0:02:34.9]} 16. Bd2 {[%clk 0:01:30.2]}
16... Bb7 {[%clk 0:02:29.9]} 17. Rad1 {[%clk 0:01:27.1]} 17... a6 {[%clk
0:02:19]} 18. h4 {[%clk 0:01:22.5]} 18... Qd6 {[%clk 0:02:18.2]} 19. h5 {[%clk
0:01:19.1]} 19... f5 {[%clk 0:02:11.5]} 20. Bxd5 {[%clk 0:01:19.1]} 20... Nxd5
{[%clk 0:02:09.3]} 21. Nxd5 {[%clk 0:00:58.5]} 21... Qxd5 {[%clk 0:02:05.6]} 22.
hxg6 {[%clk 0:00:56.5]} 22... hxg6 {[%clk 0:02:05.2]} 23. Bf4 {[%clk 0:00:51.1]}
23... Rfd8 {[%clk 0:01:48.1]} 24. Qe3 {[%clk 0:00:49.6]} 24... Re8 {[%clk
0:01:38.7]} 25. Be5 {[%clk 0:00:42]} 25... Rad8 {[%clk 0:01:30]} 26. Qg5 {[%clk
0:00:37.5]} 26... Kh7 {[%clk 0:01:02.1]} 27. Nh4 {[%clk 0:00:32]} 27... Bxe5
{[%clk 0:00:35.8]} 28. Qxg6+ {[%clk 0:00:31.8]} 28... Kh8 {[%clk 0:00:35.5]} 29.
Rxe5 {[%clk 0:00:31.4]} 29... Qxe5 {[%clk 0:00:29.2]} 30. Qh5+ {[%clk
0:00:31.2]} 30... Kg8 {[%clk 0:00:27.4]} 31. dxe5 {[%clk 0:00:32.1]} 1-0

[Event "*** Titled Tuesday Blitz"]
[Site "Chess.com"]
[Date "2021.02.09"]
[Round "3"]
[White "Evgeny81"]
[Black "Tactictic"]
[Result "1-0"]
[WhiteElo "2741"]
[BlackElo "2416"]
[TimeControl "180+1"]
[EndTime "10:28:08 PST"]
[Termination "Evgeny81 won by resignation"]

1. e4 {[%clk 0:03:00.9]} 1... e5 {[%clk 0:02:57]} 2. Nf3 {[%clk 0:03:00.5]} 2...
Nc6 {[%clk 0:02:55.9]} 3. Bb5 {[%clk 0:03:01]} 3... a6 {[%clk 0:02:53.7]} 4. Ba4
{[%clk 0:03:01.4]} 4... Nf6 {[%clk 0:02:46.3]} 5. O-O {[%clk 0:03:01.5]} 5...
Be7 {[%clk 0:02:44.4]} 6. d3 {[%clk 0:03:00.5]} 6... b6 {[%clk 0:02:32.2]} 7.
Bxc6 {[%clk 0:02:58.1]} 7... dxc6 {[%clk 0:02:28.6]} 8. Nxe5 {[%clk 0:02:58.3]}
8... Bb7 {[%clk 0:02:17.3]} 9. f4 {[%clk 0:02:57]} 9... O-O {[%clk 0:02:16.2]}
10. Nc3 {[%clk 0:02:55.7]} 10... c5 {[%clk 0:02:10.5]} 11. Kh1 {[%clk
0:02:50.2]} 11... Bd6 {[%clk 0:02:01.2]} 12. Nc4 {[%clk 0:02:47.9]} 12... b5
{[%clk 0:01:58.4]} 13. Na5 {[%clk 0:02:45.6]} 13... Qc8 {[%clk 0:01:38.7]} 14.
Nxb7 {[%clk 0:02:42.2]} 14... Qxb7 {[%clk 0:01:37]} 15. e5 {[%clk 0:02:42.6]}
15... Bxe5 {[%clk 0:01:33.3]} 16. fxe5 {[%clk 0:02:42.3]} 16... Nd7 {[%clk
0:01:34.2]} 17. Bf4 {[%clk 0:02:36.2]} 17... Rae8 {[%clk 0:01:32.3]} 18. Qh5
{[%clk 0:02:30.2]} 18... g6 {[%clk 0:01:30]} 19. Qh6 {[%clk 0:02:26.6]} 19...
Nxe5 {[%clk 0:01:28.7]} 20. Bxe5 {[%clk 0:02:24.1]} 20... Rxe5 {[%clk
0:01:29.6]} 21. Ne4 {[%clk 0:02:22.4]} 21... f5 {[%clk 0:01:19]} 22. Ng5 {[%clk
0:02:19.9]} 22... c6 {[%clk 0:01:11.3]} 23. Rae1 {[%clk 0:02:14]} 23... Rfe8
{[%clk 0:01:10.6]} 24. Nf3 {[%clk 0:02:00.1]} 24... Rxe1 {[%clk 0:01:08.8]} 25.
Rxe1 {[%clk 0:02:01]} 25... Rxe1+ {[%clk 0:01:06.6]} 26. Nxe1 {[%clk 0:02:01.9]}
26... Qe7 {[%clk 0:01:06.7]} 27. Qd2 {[%clk 0:02:00.5]} 27... Qe6 {[%clk
0:01:03.3]} 28. b3 {[%clk 0:01:57.3]} 28... Qe5 {[%clk 0:00:59.9]} 29. Nf3
{[%clk 0:01:48.5]} 29... Qa1+ {[%clk 0:00:57.8]} 30. Qe1 {[%clk 0:01:48.7]}
30... Qxa2 {[%clk 0:00:58]} 31. Qe6+ {[%clk 0:01:43.3]} 31... Kg7 {[%clk
0:00:56]} 32. Qe7+ {[%clk 0:01:43]} 32... Kg8 {[%clk 0:00:42.1]} 33. Qxc5 {[%clk
0:01:29.6]} 33... Qb1+ {[%clk 0:00:37.5]} 34. Ng1 {[%clk 0:01:29.4]} 34... a5
{[%clk 0:00:36.7]} 35. Qxc6 {[%clk 0:01:26.9]} 35... b4 {[%clk 0:00:32]} 36. h3
{[%clk 0:01:23.7]} 36... f4 {[%clk 0:00:26.4]} 37. Kh2 {[%clk 0:01:11.6]} 37...
Qe1 {[%clk 0:00:23.7]} 38. Qc4+ {[%clk 0:01:07.5]} 38... Kg7 {[%clk 0:00:21.4]}
39. Qd4+ {[%clk 0:01:05.3]} 39... Kg8 {[%clk 0:00:19.8]} 40. Qxf4 {[%clk
0:01:04]} 40... a4 {[%clk 0:00:19.3]} 41. bxa4 {[%clk 0:01:02.6]} 41... Qc3
{[%clk 0:00:19.6]} 42. Qc4+ {[%clk 0:01:01.5]} 1-0

[Event "*** Titled Tuesday Blitz"]
[Site "Chess.com"]
[Date "2021.02.09"]
[Round "3"]
[White "verdest"]
[Black "paladin_ll"]
[Result "1-0"]
[WhiteElo "2473"]
[BlackElo "2147"]
[TimeControl "180+1"]
[EndTime "10:28:09 PST"]
[Termination "verdest won by checkmate"]

1. d4 {[%clk 0:03:00.9]} 1... Nf6 {[%clk 0:02:59.3]} 2. c4 {[%clk 0:03:01.3]}
2... c5 {[%clk 0:02:57.7]} 3. d5 {[%clk 0:03:01.2]} 3... b5 {[%clk 0:02:58]} 4.
cxb5 {[%clk 0:03:02.1]} 4... a6 {[%clk 0:02:57.8]} 5. bxa6 {[%clk 0:03:01.9]}
5... Bxa6 {[%clk 0:02:58.7]} 6. Nc3 {[%clk 0:03:01.9]} 6... d6 {[%clk
0:02:58.8]} 7. e4 {[%clk 0:03:01.9]} 7... Bxf1 {[%clk 0:02:59.7]} 8. Kxf1 {[%clk
0:03:02.8]} 8... g6 {[%clk 0:02:59.8]} 9. g3 {[%clk 0:03:03.3]} 9... Bg7 {[%clk
0:03:00]} 10. Kg2 {[%clk 0:03:03.7]} 10... O-O {[%clk 0:03:00.5]} 11. Nf3 {[%clk
0:03:04.1]} 11... Nbd7 {[%clk 0:03:00.9]} 12. a4 {[%clk 0:03:03.9]} 12... Rb8
{[%clk 0:03:00.9]} 13. Qc2 {[%clk 0:03:03.3]} 13... Ng4 {[%clk 0:02:59.3]} 14.
Bd2 {[%clk 0:03:00.3]} 14... Nge5 {[%clk 0:02:58.2]} 15. Nxe5 {[%clk 0:03:00.2]}
15... Nxe5 {[%clk 0:02:58.6]} 16. Nb5 {[%clk 0:02:59.7]} 16... Nd7 {[%clk
0:02:52.3]} 17. Bc3 {[%clk 0:02:58.8]} 17... Nf6 {[%clk 0:02:52.3]} 18. Rhe1
{[%clk 0:02:54.3]} 18... Ne8 {[%clk 0:02:51.2]} 19. Rad1 {[%clk 0:02:40]} 19...
Nc7 {[%clk 0:02:49.8]} 20. Bxg7 {[%clk 0:02:28.3]} 20... Kxg7 {[%clk 0:02:47.4]}
21. Qc3+ {[%clk 0:02:28.1]} 21... f6 {[%clk 0:02:46.7]} 22. Na7 {[%clk 0:02:26]}
22... Qd7 {[%clk 0:02:33.4]} 23. Nc6 {[%clk 0:02:25.3]} 23... Rb7 {[%clk
0:02:21.1]} 24. b3 {[%clk 0:02:16.9]} 24... Na6 {[%clk 0:02:20.8]} 25. f4 {[%clk
0:02:14.2]} 25... Nb4 {[%clk 0:02:20.6]} 26. Na5 {[%clk 0:02:11.5]} 26... Rbb8
{[%clk 0:02:14.5]} 27. Nc4 {[%clk 0:02:09.9]} 27... Qb7 {[%clk 0:02:02.8]} 28.
Re3 {[%clk 0:01:50.8]} 28... Na2 {[%clk 0:01:52.8]} 29. Qd2 {[%clk 0:01:48.4]}
29... Nb4 {[%clk 0:01:49.6]} 30. e5 {[%clk 0:01:45.4]} 30... Qc7 {[%clk
0:01:41.7]} 31. exd6 {[%clk 0:01:42]} 31... exd6 {[%clk 0:01:41]} 32. Rde1
{[%clk 0:01:42.5]} 32... Rf7 {[%clk 0:01:40.5]} 33. Re6 {[%clk 0:01:40.8]} 33...
Rd8 {[%clk 0:01:39.4]} 34. a5 {[%clk 0:01:34.3]} 34... Qb7 {[%clk 0:01:37.9]}
35. Nxd6 {[%clk 0:01:30.9]} 35... Rxd6 {[%clk 0:01:22.7]} 36. Rxd6 {[%clk
0:01:31.8]} 36... h5 {[%clk 0:01:14.9]} 37. Kg1 {[%clk 0:01:24.5]} 37... h4
{[%clk 0:01:13.3]} 38. gxh4 {[%clk 0:01:22.8]} 38... Qc8 {[%clk 0:01:10.9]} 39.
Rde6 {[%clk 0:01:19.2]} 39... Qh8 {[%clk 0:01:02.2]} 40. Re7 {[%clk 0:01:13.4]}
40... Qxh4 {[%clk 0:00:56.2]} 41. Rxf7+ {[%clk 0:01:13.3]} 41... Kxf7 {[%clk
0:00:57.1]} 42. d6 {[%clk 0:01:10.5]} 42... Nd3 {[%clk 0:00:50.9]} 43. Re7+
{[%clk 0:01:08.9]} 43... Kf8 {[%clk 0:00:47.4]} 44. Qxd3 {[%clk 0:01:09]} 44...
Qg4+ {[%clk 0:00:46.4]} 45. Qg3 {[%clk 0:01:06]} 45... Qd1+ {[%clk 0:00:45.7]}
46. Re1 {[%clk 0:01:05.4]} 46... Qd4+ {[%clk 0:00:44.5]} 47. Qe3 {[%clk
0:01:05.1]} 47... Qxd6 {[%clk 0:00:43.8]} 48. Qe8+ {[%clk 0:01:04.9]} 48... Kg7
{[%clk 0:00:43.4]} 49. Re7+ {[%clk 0:01:05.4]} 49... Kh6 {[%clk 0:00:42.4]} 50.
Qh8# {[%clk 0:01:05.2]} 1-0

[Event "*** Titled Tuesday Blitz"]
[Site "Chess.com"]
[Date "2021.02.09"]
[Round "3"]
[White "C_K_G"]
[Black "NaciSAN"]
[Result "1-0"]
[WhiteElo "2101"]
[BlackElo "2300"]
[TimeControl "180+1"]
[EndTime "10:28:10 PST"]
[Termination "C_K_G won by resignation"]

1. e4 {[%clk 0:03:00.9]} 1... e5 {[%clk 0:02:59.4]} 2. Nf3 {[%clk 0:03:00.3]}
2... Nc6 {[%clk 0:03:00]} 3. Bc4 {[%clk 0:03:00.1]} 3... Bc5 {[%clk 0:02:59]} 4.
c3 {[%clk 0:03:00.3]} 4... Nf6 {[%clk 0:02:59]} 5. d4 {[%clk 0:03:00.4]} 5...
exd4 {[%clk 0:02:58.1]} 6. cxd4 {[%clk 0:03:00.8]} 6... Bb4+ {[%clk 0:02:58.3]}
7. Nc3 {[%clk 0:02:59.2]} 7... Nxe4 {[%clk 0:02:44.3]} 8. O-O {[%clk 0:02:58.1]}
8... Bxc3 {[%clk 0:02:41.8]} 9. d5 {[%clk 0:02:58]} 9... O-O {[%clk 0:02:36.4]}
10. bxc3 {[%clk 0:02:56.2]} 10... Ne7 {[%clk 0:02:31.5]} 11. Bd3 {[%clk
0:02:48.1]} 11... Nf6 {[%clk 0:02:30]} 12. c4 {[%clk 0:02:45.2]} 12... d6 {[%clk
0:02:29.7]} 13. Bg5 {[%clk 0:02:44]} 13... Ng6 {[%clk 0:02:27.2]} 14. h4 {[%clk
0:02:33]} 14... h6 {[%clk 0:02:25.1]} 15. h5 {[%clk 0:02:29.9]} 15... Nh8 {[%clk
0:02:02.5]} 16. Bh4 {[%clk 0:02:09.6]} 16... Bg4 {[%clk 0:02:00.5]} 17. Qc2
{[%clk 0:01:51.1]} 17... Bxh5 {[%clk 0:01:59.5]} 18. Bh7+ {[%clk 0:01:49.5]}
18... Nxh7 {[%clk 0:01:52.1]} 19. Bxd8 {[%clk 0:01:48.9]} 19... Raxd8 {[%clk
0:01:46.3]} 20. Nd4 {[%clk 0:01:47]} 20... Nf6 {[%clk 0:01:36.8]} 21. Nf5 {[%clk
0:01:40.3]} 21... Rfe8 {[%clk 0:01:32.9]} 22. Ng3 {[%clk 0:01:34.8]} 22... Bg6
{[%clk 0:01:32.3]} 23. Qb3 {[%clk 0:01:33.9]} 23... b6 {[%clk 0:01:31.9]} 24.
Rfe1 {[%clk 0:01:33.5]} 24... Bh7 {[%clk 0:01:21.7]} 25. a4 {[%clk 0:01:32.2]}
25... Ng6 {[%clk 0:01:17.7]} 26. a5 {[%clk 0:01:30.5]} 26... Ne5 {[%clk
0:01:17]} 27. axb6 {[%clk 0:01:28.4]} 27... axb6 {[%clk 0:01:16.5]} 28. Qb5
{[%clk 0:01:26.9]} 28... Kf8 {[%clk 0:01:13.4]} 29. f3 {[%clk 0:01:14.9]} 29...
Bd3 {[%clk 0:01:10.1]} 30. Rec1 {[%clk 0:01:03.8]} 30... g5 {[%clk 0:01:01.5]}
31. Rc3 {[%clk 0:01:02.8]} 31... Nfd7 {[%clk 0:00:58.6]} 32. Ra7 {[%clk
0:00:56.6]} 32... Rc8 {[%clk 0:00:48.7]} 33. Rxd3 {[%clk 0:00:54.3]} 33... Nxd3
{[%clk 0:00:48.2]} 34. Qxd7 {[%clk 0:00:53.3]} 34... Re1+ {[%clk 0:00:46.1]} 35.
Kh2 {[%clk 0:00:52.4]} 35... Rce8 {[%clk 0:00:42]} 36. Rxc7 {[%clk 0:00:38.5]}
36... R1e7 {[%clk 0:00:32.6]} 37. Qxd6 {[%clk 0:00:37.4]} 1-0

[Event "*** Titled Tuesday Blitz"]
[Site "Chess.com"]
[Date "2021.02.09"]
[Round "3"]
[White "Rogarcia1"]
[Black "SkippingLaptop"]
[Result "0-1"]
[WhiteElo "2276"]
[BlackElo "2063"]
[TimeControl "180+1"]
[EndTime "10:28:11 PST"]
[Termination "SkippingLaptop won on time"]

1. e4 {[%clk 0:02:59.3]} 1... c5 {[%clk 0:02:55.7]} 2. Nf3 {[%clk 0:02:58.5]}
2... Nc6 {[%clk 0:02:51.9]} 3. Bb5 {[%clk 0:02:57.5]} 3... g6 {[%clk 0:02:46.8]}
4. Bxc6 {[%clk 0:02:57]} 4... dxc6 {[%clk 0:02:45.6]} 5. d3 {[%clk 0:02:56.1]}
5... Bg7 {[%clk 0:02:44.7]} 6. h3 {[%clk 0:02:55.9]} 6... e5 {[%clk 0:02:35.5]}
7. O-O {[%clk 0:02:55.8]} 7... Qc7 {[%clk 0:02:33.1]} 8. a4 {[%clk 0:02:55.6]}
8... Ne7 {[%clk 0:02:26.2]} 9. Nbd2 {[%clk 0:02:55.5]} 9... O-O {[%clk
0:02:20.1]} 10. Nc4 {[%clk 0:02:54.7]} 10... h6 {[%clk 0:02:11]} 11. a5 {[%clk
0:02:53.7]} 11... Be6 {[%clk 0:02:07.2]} 12. b3 {[%clk 0:02:50.3]} 12... g5
{[%clk 0:01:58.4]} 13. Bb2 {[%clk 0:02:31.3]} 13... Ng6 {[%clk 0:01:57.5]} 14.
Ne3 {[%clk 0:02:22.8]} 14... Qd7 {[%clk 0:01:45.4]} 15. Kh2 {[%clk 0:02:06.8]}
15... Nf4 {[%clk 0:01:43.7]} 16. Nxe5 {[%clk 0:01:55.2]} 16... Qd6 {[%clk
0:01:29.9]} 17. N5c4 {[%clk 0:01:43.4]} 17... Qc7 {[%clk 0:01:17.5]} 18. e5
{[%clk 0:01:05.7]} 18... Qd7 {[%clk 0:01:08.2]} 19. Qf3 {[%clk 0:00:48.4]} 19...
f6 {[%clk 0:01:03]} 20. Ng4 {[%clk 0:00:29.6]} 20... fxe5 {[%clk 0:00:58.6]} 21.
Ncxe5 {[%clk 0:00:28.9]} 21... Qc7 {[%clk 0:00:53.1]} 22. Rae1 {[%clk 0:00:20]}
22... Rae8 {[%clk 0:00:50.5]} 23. Qg3 {[%clk 0:00:16.8]} 23... Bxg4 {[%clk
0:00:48.3]} 24. hxg4 {[%clk 0:00:16]} 24... Rxe5 {[%clk 0:00:46]} 25. Bxe5
{[%clk 0:00:15]} 25... Bxe5 {[%clk 0:00:45.3]} 0-1

[Event "*** Titled Tuesday Blitz"]
[Site "Chess.com"]
[Date "2021.02.09"]
[Round "3"]
[White "Kretov_Evgenij"]
[Black "igorcadilhac"]
[Result "0-1"]
[WhiteElo "2495"]
[BlackElo "2303"]
[TimeControl "180+1"]
[EndTime "10:28:12 PST"]
[Termination "igorcadilhac won by resignation"]

1. d4 {[%clk 0:03:00.9]} 1... Nf6 {[%clk 0:02:49.1]} 2. c4 {[%clk 0:03:00.3]}
2... e6 {[%clk 0:02:48.8]} 3. Nc3 {[%clk 0:02:59.9]} 3... Bb4 {[%clk 0:02:47.5]}
4. Bg5 {[%clk 0:02:59.8]} 4... O-O {[%clk 0:02:47]} 5. e3 {[%clk 0:02:58.9]}
5... b6 {[%clk 0:02:43.5]} 6. Bd3 {[%clk 0:02:58.3]} 6... Bb7 {[%clk 0:02:43.1]}
7. f3 {[%clk 0:02:58]} 7... c5 {[%clk 0:02:41.1]} 8. Ne2 {[%clk 0:02:57.4]} 8...
cxd4 {[%clk 0:02:40.7]} 9. Nxd4 {[%clk 0:02:57.1]} 9... Nc6 {[%clk 0:02:34.4]}
10. Qc2 {[%clk 0:02:54.9]} 10... h6 {[%clk 0:02:31.1]} 11. Bh4 {[%clk
0:02:53.8]} 11... Nxd4 {[%clk 0:02:21.7]} 12. exd4 {[%clk 0:02:53.6]} 12... d5
{[%clk 0:02:14.1]} 13. cxd5 {[%clk 0:02:47.3]} 13... Qxd5 {[%clk 0:02:01.2]} 14.
Bxf6 {[%clk 0:02:37.9]} 14... gxf6 {[%clk 0:02:02.1]} 15. a3 {[%clk 0:02:37.6]}
15... Bxc3+ {[%clk 0:01:57]} 16. bxc3 {[%clk 0:02:37.4]} 16... Rac8 {[%clk
0:01:41.4]} 17. O-O {[%clk 0:02:36]} 17... f5 {[%clk 0:01:35.5]} 18. a4 {[%clk
0:02:28.2]} 18... Qa5 {[%clk 0:01:23.3]} 19. Rfc1 {[%clk 0:02:25]} 19... Rfd8
{[%clk 0:01:23.7]} 20. Qb3 {[%clk 0:02:05.7]} 20... Bd5 {[%clk 0:01:19]} 21. c4
{[%clk 0:02:00.8]} 21... Bb7 {[%clk 0:01:16.8]} 22. d5 {[%clk 0:01:59.9]} 22...
exd5 {[%clk 0:01:04.7]} 23. Bxf5 {[%clk 0:01:57.3]} 23... dxc4 {[%clk
0:01:04.6]} 24. Qc2 {[%clk 0:01:54.4]} 24... Rd2 {[%clk 0:00:47]} 25. Qc3 {[%clk
0:01:39.4]} 25... Rd1+ {[%clk 0:00:22.4]} 26. Kf2 {[%clk 0:01:34.9]} 26... Qxc3
{[%clk 0:00:21.9]} 27. Rxc3 {[%clk 0:01:31.4]} 27... Rxa1 {[%clk 0:00:22.1]} 28.
Bxc8 {[%clk 0:01:30.7]} 28... Bxc8 {[%clk 0:00:23]} 29. Rxc4 {[%clk 0:01:30.8]}
29... Be6 {[%clk 0:00:23]} 30. Rd4 {[%clk 0:01:25.9]} 30... Kg7 {[%clk
0:00:22.4]} 31. g4 {[%clk 0:01:24.2]} 31... Kf6 {[%clk 0:00:22.6]} 32. h4 {[%clk
0:01:23.7]} 32... Ke5 {[%clk 0:00:22.2]} 33. Re4+ {[%clk 0:01:23.9]} 33... Kf6
{[%clk 0:00:22.2]} 34. Kg3 {[%clk 0:01:23]} 34... Bd7 {[%clk 0:00:22.4]} 35. Rd4
{[%clk 0:01:19.9]} 35... Bxa4 {[%clk 0:00:21.5]} 36. Rd6+ {[%clk 0:01:20]} 36...
Kg7 {[%clk 0:00:21.6]} 37. g5 {[%clk 0:01:18.8]} 37... hxg5 {[%clk 0:00:20.9]}
38. hxg5 {[%clk 0:01:19.1]} 38... Bb3 {[%clk 0:00:21.1]} 39. Kf4 {[%clk
0:01:17.5]} 39... Be6 {[%clk 0:00:21.1]} 40. Rc6 {[%clk 0:01:16.1]} 40... Ra4+
{[%clk 0:00:20.8]} 41. Kg3 {[%clk 0:01:10.4]} 41... Ra5 {[%clk 0:00:20.4]} 42.
f4 {[%clk 0:01:09.6]} 42... Ra3+ {[%clk 0:00:20.5]} 43. Kf2 {[%clk 0:01:06.7]}
43... Kg6 {[%clk 0:00:20.7]} 0-1